[Event "*** Titled Tuesday 3|2 Blitz"]
[Site "Chess.com"]
[Date "2016.09.06"]
[Round "9"]
[White "MaestroASK"]
[Black "saraswathii"]
[Result "0-1"]
[WhiteElo "2452"]
[BlackElo "2167"]
[TimeControl "180+2"]
[EndTime "18:54:15 PDT"]
[Termination "saraswathii won by resignation"]

1. g3 {[%clk 0:03:01.5]} 1... Nc6 {[%clk 0:02:55.4]} 2. Bg2 {[%clk 0:02:55.9]}
2... d5 {[%clk 0:02:49.6]} 3. d3 {[%clk 0:02:56.1]} 3... Nf6 {[%clk 0:02:47.6]}
4. Nd2 {[%clk 0:02:56.3]} 4... g6 {[%clk 0:02:48.5]} 5. e4 {[%clk 0:02:56.7]}
5... dxe4 {[%clk 0:02:47.7]} 6. dxe4 {[%clk 0:02:57.4]} 6... Bg7 {[%clk
0:02:48.8]} 7. Nh3 {[%clk 0:02:57.8]} 7... Bg4 {[%clk 0:02:43.2]} 8. f3 {[%clk
0:02:58.3]} 8... Bc8 {[%clk 0:02:36.9]} 9. Nf2 {[%clk 0:02:58.7]} 9... O-O
{[%clk 0:02:36.3]} 10. O-O {[%clk 0:02:58.8]} 10... e5 {[%clk 0:02:37.5]} 11. c3
{[%clk 0:02:58]} 11... Be6 {[%clk 0:02:38.2]} 12. Bh3 {[%clk 0:02:57.8]} 12...
Bxh3 {[%clk 0:02:30.1]} 13. Nxh3 {[%clk 0:02:58.4]} 13... Qe7 {[%clk 0:02:24.3]}
14. Qe2 {[%clk 0:02:56.6]} 14... Rad8 {[%clk 0:02:18.9]} 15. Nf2 {[%clk
0:02:56.8]} 15... Nd7 {[%clk 0:02:17]} 16. Nb3 {[%clk 0:02:56.6]} 16... Nb6
{[%clk 0:02:07.2]} 17. Be3 {[%clk 0:02:56.3]} 17... Rfe8 {[%clk 0:01:59]} 18.
Rfd1 {[%clk 0:02:47.3]} 18... Nc8 {[%clk 0:01:36]} 19. Nc5 {[%clk 0:02:39.1]}
19... Nd6 {[%clk 0:01:32]} 20. Rd2 {[%clk 0:02:36.8]} 20... Na5 {[%clk
0:01:31.4]} 21. b3 {[%clk 0:02:34.7]} 21... f5 {[%clk 0:01:26.4]} 22. Rad1
{[%clk 0:02:31.2]} 22... Nc6 {[%clk 0:01:01.6]} 23. Kg2 {[%clk 0:02:26.4]} 23...
Rf8 {[%clk 0:00:55.6]} 24. Nh3 {[%clk 0:02:21.1]} 24... b6 {[%clk 0:00:51.3]}
25. Na6 {[%clk 0:02:15.3]} 25... h6 {[%clk 0:00:42.8]} 26. exf5 {[%clk
0:01:56.9]} 26... Rxf5 {[%clk 0:00:35.7]} 27. Nf2 {[%clk 0:01:52]} 27... Rdf8
{[%clk 0:00:30.4]} 28. Rxd6 {[%clk 0:01:20.8]} 28... cxd6 {[%clk 0:00:28.4]} 29.
Qc4+ {[%clk 0:01:20.8]} 29... Kh7 {[%clk 0:00:28]} 30. Qxc6 {[%clk 0:01:21.2]}
30... Rxf3 {[%clk 0:00:25.1]} 31. Re1 {[%clk 0:01:17.4]} 31... Qf7 {[%clk
0:00:20.7]} 32. Nd1 {[%clk 0:00:29.1]} 32... d5 {[%clk 0:00:21]} 33. Qb5 {[%clk
0:00:24.2]} 33... g5 {[%clk 0:00:17]} 34. Qe2 {[%clk 0:00:24.5]} 34... d4 {[%clk
0:00:16.5]} 35. cxd4 {[%clk 0:00:24.4]} 35... exd4 {[%clk 0:00:18.4]} 36. Bg1
{[%clk 0:00:23.7]} 36... d3 {[%clk 0:00:18.1]} 37. Qe4+ {[%clk 0:00:24.6]} 37...
Kh8 {[%clk 0:00:18.9]} 38. Nb4 {[%clk 0:00:25.5]} 38... d2 {[%clk 0:00:18.6]}
39. Re2 {[%clk 0:00:26.6]} 39... Rf1 {[%clk 0:00:16.2]} 40. Rf2 {[%clk
0:00:23.8]} 40... Rxf2+ {[%clk 0:00:16]} 41. Bxf2 {[%clk 0:00:24.4]} 41... Qf6
{[%clk 0:00:13.1]} 42. Qe2 {[%clk 0:00:21.9]} 42... Qd6 {[%clk 0:00:13.3]} 43.
Nd3 {[%clk 0:00:22.3]} 43... Qd5+ {[%clk 0:00:14.2]} 44. Kg1 {[%clk 0:00:22.8]}
44... Rd8 {[%clk 0:00:14.4]} 45. Nb4 {[%clk 0:00:19]} 45... Qd6 {[%clk 0:00:14]}
46. Nc2 {[%clk 0:00:19.4]} 46... Rc8 {[%clk 0:00:14.4]} 47. Nce3 {[%clk
0:00:19.5]} 47... Rc1 {[%clk 0:00:15.4]} 48. Kg2 {[%clk 0:00:20.4]} 48... Qc6+
{[%clk 0:00:14.7]} 49. Qf3 {[%clk 0:00:21.2]} 49... Qxf3+ {[%clk 0:00:15]} 50.
Kxf3 {[%clk 0:00:21.8]} 50... Ra1 {[%clk 0:00:15.8]} 51. Ke2 {[%clk 0:00:19.7]}
51... Rxa2 {[%clk 0:00:16.6]} 52. Nc4 {[%clk 0:00:20.5]} 52... Bf8 {[%clk
0:00:16.6]} 53. Nxd2 {[%clk 0:00:20.3]} 53... Bb4 {[%clk 0:00:17.6]} 54. Be3
{[%clk 0:00:21.2]} 54... Ra3 {[%clk 0:00:17.7]} 55. Bd4+ {[%clk 0:00:20.1]}
55... Kh7 {[%clk 0:00:17.7]} 56. Bb2 {[%clk 0:00:21]} 56... Ra2 {[%clk
0:00:17.5]} 57. Kd3 {[%clk 0:00:18.3]} 57... Ba3 {[%clk 0:00:17.1]} 58. Bxa3
{[%clk 0:00:18.2]} 58... Rxa3 {[%clk 0:00:18.5]} 59. Kc2 {[%clk 0:00:17.8]}
59... Ra2+ {[%clk 0:00:19]} 60. Kc3 {[%clk 0:00:17.6]} 60... Ra1 {[%clk
0:00:18.9]} 61. Nf2 {[%clk 0:00:18]} 61... Re1 {[%clk 0:00:18.6]} 62. Kd3 {[%clk
0:00:18.2]} 62... Kg6 {[%clk 0:00:19]} 63. Ng4 {[%clk 0:00:17.3]} 63... Rh1
{[%clk 0:00:17.7]} 64. Nf3 {[%clk 0:00:17.7]} 64... h5 {[%clk 0:00:16.6]} 65.
Nf2 {[%clk 0:00:18.5]} 65... Rf1 {[%clk 0:00:17.1]} 66. Ke2 {[%clk 0:00:19.2]}
66... Rb1 {[%clk 0:00:18.3]} 67. Nd2 {[%clk 0:00:20.3]} 67... Rc1 {[%clk
0:00:18.7]} 68. h3 {[%clk 0:00:20.3]} 68... Rc3 {[%clk 0:00:19]} 69. g4 {[%clk
0:00:21.4]} 69... h4 {[%clk 0:00:17]} 70. b4 {[%clk 0:00:20.8]} 70... a5 {[%clk
0:00:17.7]} 71. bxa5 {[%clk 0:00:21.8]} 71... bxa5 {[%clk 0:00:19.6]} 72. Nf3
{[%clk 0:00:20.9]} 72... a4 {[%clk 0:00:18.9]} 73. Ne4 {[%clk 0:00:21.9]} 73...
Rb3 {[%clk 0:00:19]} 74. Nc5 {[%clk 0:00:18.2]} 74... Rb2+ {[%clk 0:00:19.4]}
75. Nd2 {[%clk 0:00:19]} 75... a3 {[%clk 0:00:20.4]} 76. Nd3 {[%clk 0:00:17.1]}
76... Rxd2+ {[%clk 0:00:20.6]} 77. Kxd2 {[%clk 0:00:18.3]} 77... a2 {[%clk
0:00:22.1]} 78. Ke3 {[%clk 0:00:19.2]} 78... a1=Q {[%clk 0:00:23.2]} 79. Nf2
{[%clk 0:00:21]} 79... Qc3+ {[%clk 0:00:23.1]} 80. Ke2 {[%clk 0:00:20.9]} 80...
Kf7 {[%clk 0:00:23.3]} 81. Kf1 {[%clk 0:00:21]} 81... Ke6 {[%clk 0:00:23.6]} 82.
Ke2 {[%clk 0:00:22.2]} 82... Ke5 {[%clk 0:00:23.1]} 83. Kf1 {[%clk 0:00:22.2]}
83... Qf3 {[%clk 0:00:23.3]} 84. Ke1 {[%clk 0:00:22.7]} 84... Kf4 {[%clk
0:00:22.6]} 0-1